bitfinex/quotes_SOLUSD_20240913
["timestamp","ask_amount","ask_price","bid_price","bid_amount"]
[1726249943810,24.153354,136.89,136.88,0.5154834]
[1726249945035,25.48523809,136.89,136.88,0.5154834]
[1726249945815,23.902374,136.89,136.88,0.5154834]
[1726249946930,3.13731615,136.9,136.88,0.5154834]
[1726249947123,1.67994206,136.9,136.88,0.5154834]
[1726249948160,24.027864,136.89,136.88,0.5154834]
[1726249948864,23.902374,136.89,136.88,0.5154834]
[1726249949235,24.153354,136.89,136.88,0.5154834]
[1726249949938,1.67994206,136.9,136.88,0.5154834]
[1726249957645,1.45737409,136.89,136.88,0.5154834]
[1726249957845,1.67994206,136.9,136.88,0.5154834]
[1726249970354,10.28860911,136.89,136.88,0.5154834]
[1726249971855,10.28899318,136.89,136.88,0.5154834]
[1726249975287,10.29331002,136.89,136.88,0.5154834]
[1726249975464,10.29331002,136.89,136.88,0.6409734]
[1726249975980,10.29331002,136.89,136.88,56.54981514]
[1726249976366,10.29331002,136.89,136.88,80.45218914]
[1726249976680,1.67994206,136.9,136.89,0.12549]
[1726249978654,1.67994206,136.9,136.89,24.027864]
[1726249978855,1.67994206,136.9,136.89,44.027864]
[1726249980582,1.67994206,136.9,136.89,44.153354]
[1726249981282,1.67994206,136.9,136.89,44.027864]
[1726249981961,1.67994206,136.9,136.89,44.153354]
[1726249983367,1.67994206,136.9,136.89,44.027864]
[1726249984475,23.776884,137.0,136.91,0.12549]
[1726249984766,10.26739125,136.99,136.91,0.12549]
[1726249984966,23.776884,137.0,136.91,24.2048882]
[1726249984967,10.14190125,136.98,136.91,24.2048882]
[1726249985193,10.14190125,136.97,136.91,24.2048882]
[1726249985395,10.14190125,136.96,136.91,24.2048882]
[1726249986301,10.14190125,136.99,136.91,24.2048882]
[1726249986604,10.14344471,136.98,136.91,24.2048882]
[1726249986906,10.14344471,136.97,136.92,20.12549]
[1726249987086,10.14344471,136.97,136.92,55.90884174]
[1726249987294,10.14344471,136.97,136.92,20.0]
[1726249987492,16.48267861,136.96,136.92,20.0]
[1726249988006,6.33949177,136.95,136.92,20.0]
[1726249988314,6.33942701,136.98,136.91,20.3025142]
[1726249988315,6.33949177,136.94,136.91,20.3025142]
[1726249988482,6.33863466,136.93,136.91,0.3025142]
[1726249988687,6.33942701,136.98,136.91,0.3025142]
[1726249988896,16.48070482,136.97,136.91,0.3025142]
[1726249989204,16.48070482,136.96,136.91,0.3025142]
[1726249989405,7.7968011,136.98,136.91,0.3025142]
[1726249989406,16.48070482,136.95,136.91,0.3025142]
[1726249989603,6.33873262,136.94,136.91,0.3025142]
[1726249990302,7.7968011,136.98,136.91,0.3025142]
[1726249990303,6.33873262,136.93,136.91,0.3025142]
[1726249990509,6.33873262,136.92,136.91,0.3025142]
[1726249992185,6.33845645,136.92,136.91,0.3025142]
[1726249993908,6.33863491,136.92,136.91,0.3025142]
[1726249994086,6.33863491,136.96,136.91,0.3025142]
[1726249994287,10.14188506,136.95,136.91,0.3025142]
[1726249994486,10.14188506,136.94,136.91,0.3025142]
[1726249994691,6.33863491,136.93,136.91,0.3025142]
[1726249994986,6.33863491,136.92,136.91,0.3025142]
[1726249995789,6.33863491,136.93,136.91,0.3025142]
[1726249996098,6.33952749,136.92,136.91,0.3025142]
[1726249997108,6.33942701,136.98,136.91,0.3025142]
[1726249997405,16.48487792,136.97,136.95,22.43608156]
[1726249997708,6.34033766,136.96,136.95,22.43608156]
[1726249999210,6.34033766,136.96,136.93,22.43608156]
[1726249999405,1.45737409,137.01,136.93,22.43608156]
[1726249999713,16.49276996,137.0,136.93,22.43608156]
[1726249999895,16.49276996,136.99,136.93,22.43608156]
[1726250000093,1.45737409,137.01,136.93,22.43608156]
[1726250000298,23.776884,137.0,136.93,20.0]
[1726250000504,1.45737409,136.99,136.93,20.0]
[1726250000703,16.49354187,136.98,136.93,20.0]
[1726250001008,16.49354187,136.97,136.93,20.0]
[1726250001309,6.34366995,136.96,136.93,20.0]
[1726250001614,24.027864,137.02,136.93,20.0]
[1726250001905,18.07543011,137.01,136.93,20.0]
[1726250002115,16.49256602,137.0,136.93,20.0]
[1726250002404,16.49256602,136.99,136.94,24.027864]
[1726250002582,6.34329462,136.98,136.94,24.027864]
[1726250002783,6.34329462,136.97,136.93,20.0]
[1726250003014,6.34329462,136.96,136.93,20.0]
[1726250003185,1.45737409,137.04,136.94,0.25098]
[1726250003380,16.48991685,137.03,136.94,0.12549]
[1726250003587,7.7996498,137.02,136.94,0.25098]
[1726250003887,16.48991685,137.01,136.94,0.25098]
[1726250004083,16.48991685,137.0,136.95,35.87106334]
[1726250004290,6.34227571,136.99,136.95,35.87106334]
[1726250004704,6.34227571,136.98,136.96,0.25098]
[1726250005087,6.34227571,136.98,136.96,24.027864]
[1726250005413,6.4146,137.07,136.96,24.027864]
[1726250005414,7.87197409,137.07,136.96,0.25098]
[1726250005584,16.49081554,137.06,136.95,35.87106334]
[1726250005787,17.94818963,137.05,136.95,35.87106334]
[1726250006013,17.94818963,137.04,136.95,35.87106334]
[1726250006307,28.3646,137.07,136.95,20.0]
[1726250006308,16.49081554,137.03,136.95,20.0]
[1726250006506,16.49081554,137.02,136.95,20.0]
[1726250006702,16.49081554,137.01,136.95,20.0]
[1726250006912,0.12549,137.03,136.95,20.0]
[1726250006913,16.49081554,137.0,136.95,20.0]
[1726250007212,6.34262136,137.0,136.95,20.0]
[1726250007582,6.34262136,136.99,136.95,20.0]
[1726250007817,6.34262136,136.98,136.95,20.0]
[1726250008013,1.58286409,137.03,136.95,20.0]
[1726250008213,16.4847922,137.02,136.95,20.0]
[1726250008413,16.4847922,137.01,136.96,24.027864]
[1726250008615,16.4847922,137.0,136.94,20.0]
[1726250008919,6.34030469,136.99,136.95,24.027864]
[1726250009097,1.45737409,137.06,136.95,0.25098]
[1726250009098,6.34030469,136.98,136.95,0.25098]
[1726250009296,1.45737409,137.06,136.95,0.25098]
[1726250009500,16.48389129,137.05,136.95,0.25098]
[1726250009809,41.96912938,137.04,136.95,0.25098]
[1726250010012,16.48389129,137.03,136.95,0.25098]
[1726250010321,25.48523809,137.04,136.95,0.25098]
[1726250010515,16.48390208,137.02,136.95,0.25098]
[1726250011218,6.33996234,137.01,136.95,0.25098]
[1726250011420,6.33996234,137.0,136.95,0.25098]
[1726250012196,6.33996234,136.99,136.95,0.25098]
[1726250012418,1.45737409,137.03,136.95,0.25098]
[1726250012619,16.60837547,137.02,136.93,20.0]
[1726250012791,41.71714356,137.01,136.92,21.9782142]
[1726250012991,16.60837547,137.0,136.92,0.3025142]
[1726250013191,41.84263356,136.99,136.92,0.3025142]
[1726250013418,23.776884,136.97,136.92,0.3025142]
[1726250013616,1.45737409,136.96,136.92,0.3025142]
[1726250013921,0.12549,136.95,136.92,0.3025142]
[1726250014151,1.45737409,136.96,136.92,0.3025142]
[1726250014418,6.31261347,136.95,136.92,0.3025142]
[1726250014617,6.31261347,136.94,136.92,0.3025142]
[1726250014806,6.31261347,136.93,136.92,0.3025142]
[1726250018613,15.58699196,136.99,136.92,0.3025142]
[1726250018967,16.41593575,136.98,136.92,0.3025142]
[1726250019120,16.41593575,136.97,136.92,0.3025142]
[1726250019324,16.41593575,136.96,136.92,0.3025142]
[1726250019629,6.31382144,136.95,136.92,0.3025142]
[1726250019839,6.31382144,136.94,136.92,0.3025142]
[1726250020135,16.2317,137.0,136.92,0.3025142]
[1726250020722,1.45737409,136.99,136.92,0.3025142]
[1726250020923,17.87389499,136.98,136.92,0.3025142]
[1726250021143,16.4165209,136.97,136.92,0.3025142]
[1726250021330,10.1024744,136.96,136.92,0.3025142]
[1726250021540,10.1024744,136.95,136.92,0.3025142]
[1726250021841,10.1024744,136.94,136.92,0.3025142]
[1726250022048,7.77142059,136.97,136.92,0.3025142]
[1726250022341,16.41397741,136.96,136.92,0.3025142]
[1726250022544,7.77142059,136.95,136.92,0.3025142]
[1726250022716,16.41397741,136.94,136.92,0.3025142]
[1726250022919,16.41397741,136.93,136.92,0.3025142]
[1726250024441,16.53946741,136.93,136.92,0.3025142]
[1726250025143,40.44184141,136.93,136.92,0.3025142]
[1726250025532,40.31635141,136.93,136.92,0.3025142]
[1726250025730,40.44184141,136.93,136.92,0.3025142]
[1726250025928,41.8992155,136.93,136.92,0.3025142]
[1726250026240,42.0247055,136.93,136.92,0.3025142]
[1726250027336,40.56733141,136.93,136.92,0.3025142]
[1726250028850,42.0247055,136.93,136.92,0.3025142]
[1726250029022,40.56733141,136.93,136.92,0.3025142]
[1726250029227,42.0247055,136.93,136.92,0.3025142]
[1726250029444,40.56733141,136.93,136.92,0.3025142]
[1726250030145,31.92477459,136.93,136.92,0.3025142]
[1726250030341,35.70657195,136.93,136.92,0.3025142]
[1726250030547,40.55910027,136.93,136.92,0.3025142]
[1726250035533,40.43361027,136.93,136.92,0.3025142]
[1726250036456,16.53123627,136.93,136.92,0.3025142]
[1726250036865,0.12549,136.93,136.92,0.3025142]
[1726250037152,16.53593067,136.93,136.92,0.3025142]
[1726250037956,6.43719795,136.93,136.92,0.3025142]
[1726250038157,30.33957195,136.93,136.92,0.3025142]
[1726250038336,40.43830467,136.93,136.92,0.3025142]
[1726250040160,24.027864,136.93,136.92,0.3025142]
[1726250040350,34.12598682,136.93,136.92,0.3025142]
[1726250040744,16.53493958,136.93,136.92,0.3025142]
[1726250040959,16.40944958,136.93,136.92,0.3025142]
[1726250043242,6.31132676,136.93,136.92,0.3025142]
[1726250045664,6.31319092,136.93,136.92,0.3013712]
[1726250047069,6.31328438,136.93,136.92,0.3013712]
[1726250048665,16.41453939,136.93,136.92,0.3013712]
[1726250048973,31.203774,136.96,136.92,0.3013712]
[1726250049183,6.31074834,136.93,136.92,0.3013712]
[1726250050075,16.40794569,136.93,136.92,0.3013712]
[1726250050276,40.31031969,136.93,136.92,0.3013712]
[1726250050857,33.99957135,136.93,136.92,0.3013712]
[1726250051168,34.25055135,136.93,136.92,0.3013712]
[1726250051375,42.01867378,136.93,136.92,0.3013712]
[1726250052871,40.43580969,136.93,136.92,0.3013712]
[1726250053264,42.01867378,136.93,136.92,0.3013712]
[1726250053650,16.40794569,136.93,136.92,0.3013712]
[1726250054975,10.09719735,136.93,136.92,0.3013712]
[1726250055355,16.40601212,136.93,136.92,0.3013712]
[1726250055555,25.35974809,136.95,136.92,0.3013712]
[1726250055778,10.09598586,136.93,136.92,0.3013712]
[1726250056975,16.40597702,136.93,136.92,0.3013712]
[1726250057651,6.30999116,136.93,136.92,0.3013712]
[1726250057851,16.40597702,136.93,136.92,0.3013712]
[1726250058055,40.30835102,136.93,136.92,0.3013712]
[1726250058368,40.43384102,136.93,136.92,0.3013712]
[1726250058567,40.30835102,136.93,136.92,0.3013712]
[1726250058984,40.30838623,136.93,136.92,0.3013712]
[1726250059453,40.43393256,136.93,136.92,0.3013712]
[1726250059656,40.55942256,136.93,136.92,0.3013712]
[1726250060388,40.55942256,136.93,136.88,0.2560802]
[1726250060389,7.3046,136.9,136.88,0.2560802]
[1726250060591,17.98893265,136.89,136.88,0.2560802]
[1726250061161,41.89130665,136.89,136.88,0.2560802]
[1726250061474,40.43393256,136.89,136.88,0.2560802]
[1726250062085,34.12390619,136.89,136.88,0.2560802]
[1726250062268,50.52585851,136.89,136.88,0.2560802]
[1726250062468,40.42981632,136.89,136.88,0.2560802]
[1726250064555,40.55530632,136.89,136.88,0.2560802]
[1726250064761,42.01268041,136.89,136.88,0.2560802]
[1726250065074,30.4617972,136.89,136.88,0.2560802]
[1726250065281,31.91917129,136.89,136.88,0.2560802]
[1726250065683,30.4617972,136.89,136.88,0.2560802]
[1726250068081,30.4617972,136.89,136.84,0.2560802]
[1726250068388,0.25098,136.87,136.84,0.2560802]
[1726250068558,23.776884,136.88,136.84,0.2560802]
[1726250068559,0.12549,136.86,136.84,0.2560802]
[1726250068764,6.42123379,136.86,136.84,0.2560802]
[1726250070271,6.29574379,136.85,136.84,0.2560802]
[1726250071705,0.12549,136.86,136.84,0.2560802]
[1726250071994,6.29500985,136.85,136.84,0.2560802]
[1726250075096,0.12549,136.89,136.84,0.2560802]
[1726250075482,6.29386338,136.85,136.84,0.2560802]
[1726250078411,1.58286409,136.89,136.84,0.2560802]
[1726250078575,6.29376131,136.85,136.84,0.2560802]
[1726250079987,6.29376131,136.88,136.84,0.2560802]
[1726250080369,0.12549,136.89,136.84,0.2560802]
[1726250080370,6.29376131,136.85,136.84,0.2560802]
[1726250085514,6.29453713,136.85,136.84,0.2560802]
[1726250092128,0.25098,136.88,136.84,0.2560802]
[1726250092322,6.29419392,136.85,136.84,0.2560802]
[1726250092498,0.12549,136.85,136.84,0.2560802]
[1726250092826,6.41968392,136.85,136.84,0.2560802]
[1726250095414,6.41676442,136.85,136.84,0.2560802]
[1726250095926,6.29127442,136.85,136.84,0.2560802]
[1726250098541,0.25098,136.88,136.84,0.2560802]
[1726250098842,6.29129319,136.85,136.84,0.2560802]
[1726250100425,12.58259843,136.85,136.84,0.2560802]
[1726250102759,12.58259843,136.85,136.84,58.6620291]
[1726250103057,254.3560802,136.99,136.86,44.027864]
[1726250103255,1.52657556,136.99,136.89,14.3780849]
[1726250103430,7.808187,136.99,136.89,14.3780849]
[1726250103638,1.45737409,136.98,136.89,14.3780849]
[1726250103817,32.66516331,136.99,136.89,14.3780849]
[1726250104355,29.758187,136.99,136.89,14.3780849]
[1726250104556,29.758187,136.99,136.86,44.027864]
[1726250104723,29.758187,136.99,136.9,14.3780849]
[1726250105231,1.45737409,136.98,136.9,14.3780849]
[1726250105436,1.45737409,136.98,136.89,14.3780849]
[1726250105631,0.2560802,136.99,136.88,14.3780849]
[1726250106553,0.12549,136.98,136.88,14.3780849]
[1726250106758,0.37647,136.98,136.88,14.3780849]
[1726250107127,24.027864,136.96,136.88,14.3780849]
[1726250107329,1.58286409,136.95,136.87,14.3780849]
[1726250107752,0.12549,136.95,136.88,14.3780849]
[1726250108258,7.5562802,136.99,136.89,14.3780849]
[1726250109037,0.2560802,136.99,136.91,14.3780849]
[1726250109246,0.2560802,136.99,136.92,14.3780849]
[1726250110331,0.2560802,136.99,136.93,14.3780849]
[1726250110527,0.2560802,136.99,136.92,14.3780849]
[1726250110759,24.0329642,136.99,136.91,20.4639849]
[1726250110933,1.45737409,136.98,136.91,20.4639849]
[1726250111435,1.45737409,136.98,136.89,14.3780849]
[1726250111827,0.12549,136.97,136.89,14.3780849]
[1726250112342,7.42719,136.96,136.88,6.1877]
[1726250112542,23.902374,136.94,136.85,30.5041849]
[1726250112756,1.58286409,136.93,136.85,16.1261]
[1726250112922,25.35974809,136.92,136.84,6.6220802]
[1726250113145,0.12549,136.91,136.84,6.6220802]
[1726250115051,6.20456845,136.9,136.84,6.6220802]
[1726250115375,6.20456845,136.89,136.84,6.6220802]
[1726250115668,6.20456845,136.88,136.84,6.6220802]
[1726250115873,0.12549,136.91,136.84,6.6220802]
[1726250116175,6.2046935,136.9,136.84,6.6220802]
[1726250116362,6.2046935,136.89,136.84,6.6220802]
[1726250116679,6.2046935,136.88,136.84,6.6220802]
[1726250116847,0.12549,136.91,136.84,6.6220802]
[1726250117047,6.20455476,136.9,136.84,6.6220802]
[1726250117375,6.33004476,136.89,136.84,0.2560802]
[1726250117546,6.20455476,136.88,136.84,0.2560802]
[1726250117944,6.20455476,136.87,136.84,0.2560802]
[1726250118148,0.25098,136.89,136.84,0.2560802]
[1726250118456,6.20366778,136.88,136.84,0.2560802]
[1726250118672,6.20366778,136.87,136.84,0.2560802]
[1726250118856,23.902374,136.92,136.84,1.58458817]
[1726250119170,6.32989229,136.91,136.84,0.2560802]
[1726250119368,6.20440229,136.9,136.84,0.2560802]
[1726250119576,6.20440229,136.89,136.84,0.2560802]
[1726250119759,6.20440229,136.88,136.84,0.2560802]
[1726250119962,6.20440229,136.87,136.84,0.2560802]
[1726250120276,0.12549,136.91,136.84,0.2560802]
[1726250120456,6.20411905,136.9,136.84,0.2560802]
[1726250120662,0.12549,136.91,136.84,0.2560802]
[1726250120663,6.20411905,136.89,136.84,0.2560802]
[1726250120967,6.20411905,136.88,136.84,0.2560802]
[1726250121370,0.12549,136.91,136.84,0.2560802]
[1726250121549,6.20471687,136.9,136.84,0.2560802]
[1726250121750,6.20471687,136.89,136.84,0.2560802]
[1726250121950,6.20471687,136.88,136.84,0.2560802]
[1726250122249,0.12549,136.91,136.84,0.2560802]
[1726250122459,6.20466357,136.9,136.84,0.2560802]
[1726250122668,6.20466357,136.89,136.84,0.2560802]
[1726250122859,6.20466357,136.88,136.84,0.2560802]
[1726250123185,0.12549,136.91,136.84,0.2560802]
[1726250123479,6.20474043,136.9,136.84,0.2560802]
[1726250123668,6.20474043,136.89,136.84,0.2560802]
[1726250123873,6.20474043,136.88,136.84,0.2560802]
[1726250124067,1.58286409,136.91,136.84,0.2560802]
[1726250124863,6.20464448,136.9,136.84,0.2560802]
[1726250125046,6.20464448,136.89,136.84,0.2560802]
[1726250126183,6.20464448,136.88,136.84,0.2560802]
[1726250126555,7.66201857,136.87,136.84,0.2560802]
[1726250126756,6.20464448,136.86,136.84,0.2560802]
[1726250126956,1.58286409,136.89,136.84,0.2560802]
[1726250127183,6.20362743,136.88,136.84,0.2560802]
[1726250127374,6.20362743,136.87,136.84,0.2560802]
[1726250127557,6.20362743,136.86,136.84,0.2560802]
[1726250127760,23.902374,136.89,136.84,0.2560802]
[1726250128063,6.20418762,136.88,136.84,0.2560802]
[1726250128386,6.20418762,136.87,136.84,0.2560802]
[1726250128561,6.20418762,136.86,136.84,0.2560802]
[1726250128874,23.902374,136.89,136.84,0.2560802]
[1726250129184,6.20459161,136.88,136.84,0.2560802]
[1726250129475,6.20459161,136.87,136.84,0.2560802]
[1726250129665,6.20459161,136.86,136.84,0.2560802]
[1726250129870,23.902374,136.89,136.84,0.2560802]
[1726250130062,7.66186328,136.88,136.84,0.2560802]
[1726250130260,6.20448919,136.87,136.84,0.2560802]
[1726250130475,6.20448919,136.86,136.84,0.2560802]
[1726250130798,0.25098,136.89,136.84,0.2560802]
[1726250131378,6.20432919,136.88,136.84,0.2560802]
[1726250131889,0.12549,136.86,136.84,0.2560802]
[1726250132461,23.902374,136.87,136.84,0.2560802]
[1726250132660,6.20432919,136.86,136.84,0.2560802]
[1726250132878,6.20432919,136.85,136.84,0.2560802]
[1726250133071,6.20432919,136.86,136.84,0.2560802]
[1726250133473,23.902374,136.87,136.84,0.2560802]
[1726250133474,6.20432919,136.85,136.84,0.2560802]
[1726250133782,6.20432919,136.86,136.84,0.2560802]
[1726250133956,0.12549,136.85,136.84,0.2560802]
[1726250134164,6.33031857,136.85,136.84,0.2560802]
[1726250135674,6.20482857,136.85,136.84,0.2560802]
[1726250137362,0.25098,136.87,136.84,0.2560802]
[1726250137564,6.20513279,136.85,136.84,0.2560802]
[1726250140971,6.20498416,136.85,136.84,0.2560802]
[1726250141972,6.20498416,136.85,136.78,28.99797863]
[1726250142174,6.20498416,136.84,136.78,28.99797863]
[1726250142398,0.12549,136.86,136.78,14.6161604]
[1726250142583,6.20213149,136.85,136.78,14.6161604]
[1726250142787,6.20213149,136.84,136.78,28.99797863]
[1726250143114,6.20213149,136.83,136.78,28.99797863]
[1726250143280,23.902374,136.86,136.78,28.99797863]
[1726250143480,6.32651351,136.85,136.78,28.99797863]
[1726250143682,6.20102351,136.84,136.78,28.99797863]
[1726250143869,6.20102351,136.83,136.78,28.99797863]
[1726250144071,23.527864,136.86,136.78,28.99797863]
[1726250144273,6.19939368,136.85,136.78,28.99797863]
[1726250144480,6.19939368,136.84,136.78,28.99797863]
[1726250144687,6.19939368,136.83,136.78,28.99797863]
[1726250144881,23.527864,136.86,136.78,28.99797863]
[1726250145080,6.19759636,136.85,136.78,28.99797863]
[1726250145299,6.19759636,136.84,136.78,28.99797863]
[1726250145483,6.19759636,136.83,136.78,28.99797863]
[1726250145690,23.527864,136.86,136.78,28.99797863]
[1726250145903,6.19757926,136.85,136.78,28.99797863]
[1726250146085,6.19757926,136.84,136.78,28.99797863]
[1726250146286,6.19757926,136.83,136.78,28.99797863]
[1726250146605,23.653354,136.86,136.78,28.99797863]
[1726250146820,6.32298918,136.85,136.78,28.99797863]
[1726250146982,6.19749918,136.84,136.78,28.99797863]
[1726250147579,0.12549,136.85,136.78,28.99797863]
[1726250147779,6.19761392,136.83,136.78,28.99797863]
[1726250148006,6.19761392,136.83,136.79,14.38181823]
[1726250148207,6.19761392,136.83,136.8,14.38181823]
[1726250148406,6.19761392,136.83,136.79,14.38181823]
[1726250149097,14.86596497,136.89,136.79,14.38181823]
[1726250149496,30.35154645,136.88,136.79,14.38181823]
[1726250149695,6.19819245,136.87,136.79,14.38181823]
[1726250149886,6.32368245,136.86,136.79,14.38181823]
[1726250150097,6.19819245,136.85,136.79,14.38181823]
[1726250150299,6.19819245,136.84,136.79,14.38181823]
[1726250150509,0.12549,136.86,136.79,14.38181823]
[1726250150683,6.19818057,136.85,136.79,14.38181823]
[1726250150883,6.19818057,136.84,136.79,14.38181823]
[1726250151397,0.37647,136.87,136.79,14.38181823]
[1726250151597,6.19824838,136.86,136.79,14.38181823]
[1726250151896,6.19824838,136.85,136.79,14.38181823]
[1726250152219,6.19824838,136.84,136.79,14.38181823]
[1726250152396,0.12549,136.87,136.79,14.38181823]
[1726250152909,6.19830546,136.86,136.79,14.38181823]
[1726250153202,6.19830546,136.85,136.79,14.38181823]
[1726250153411,6.19830546,136.84,136.79,14.38181823]
[1726250153590,0.12549,136.87,136.78,28.99797863]
[1726250153910,6.19756951,136.86,136.78,28.99797863]
[1726250154114,6.19756951,136.85,136.78,28.99797863]
[1726250154289,6.19756951,136.84,136.78,28.99797863]
[1726250154491,6.19756951,136.83,136.78,28.99797863]
[1726250154687,0.12549,136.87,136.78,28.99797863]
[1726250154921,6.19785535,136.86,136.78,28.99797863]
[1726250155212,6.19785535,136.85,136.78,28.99797863]
[1726250155384,6.19785535,136.84,136.78,28.99797863]
[1726250155585,6.19785535,136.83,136.78,28.99797863]
[1726250155784,0.12549,136.87,136.78,28.99797863]
[1726250156008,6.19787323,136.86,136.78,28.99797863]
[1726250156213,6.19787323,136.85,136.79,1.46092216]
[1726250156512,6.19787323,136.84,136.8,1.46081539]
[1726250156809,6.19787323,136.83,136.8,1.46081539]
[1726250157009,0.37647,136.87,136.8,1.46081539]
[1726250157218,6.19800585,136.86,136.8,1.46081539]
[1726250157396,6.19800585,136.85,136.8,1.46081539]
[1726250157597,6.19800585,136.84,136.8,1.46081539]
[1726250157780,6.19800585,136.83,136.8,1.46081539]
[1726250157981,6.19800585,136.82,136.8,1.46081539]
[1726250158192,0.37647,136.87,136.8,1.46081539]
[1726250158394,6.19783779,136.86,136.8,1.46081539]
[1726250158584,0.37647,136.87,136.8,1.46081539]
[1726250158803,0.37647,136.87,136.79,14.38181823]
[1726250159014,6.19788199,136.85,136.78,28.99797863]
[1726250159720,6.19788199,136.85,136.78,14.6161604]
[1726250159916,25.35974809,136.84,136.78,14.6161604]
[1726250160205,0.12549,136.84,136.78,14.6161604]
[1726250160413,6.19788199,136.85,136.78,14.6161604]
[1726250160983,6.19788199,136.85,136.78,28.99797863]
[1726250161186,25.35974809,136.86,136.78,28.99797863]
[1726250161497,6.20011185,136.84,136.78,28.99797863]
[1726250161887,6.20011185,136.85,136.78,28.99797863]
[1726250162099,6.20011185,136.84,136.78,14.6161604]
[1726250162319,7.65748594,136.83,136.78,14.6161604]
[1726250162503,6.20011185,136.82,136.78,14.6161604]
[1726250162699,23.902374,136.86,136.78,14.6161604]
[1726250162700,6.20011185,136.81,136.78,14.6161604]
[1726250162900,6.20011185,136.8,136.78,14.6161604]
[1726250163105,0.12549,136.85,136.78,14.6161604]
[1726250163290,6.19986028,136.84,136.78,14.6161604]
[1726250163618,6.19986028,136.83,136.78,14.6161604]
[1726250163817,6.19986028,136.82,136.78,14.6161604]
[1726250164028,6.19986028,136.81,136.78,14.6161604]
[1726250164185,6.19986028,136.8,136.78,14.6161604]
[1726250164505,6.19835617,136.79,136.78,14.6161604]
[1726250164923,6.19835617,136.79,136.77,6.214]
[1726250165091,1.45737409,136.83,136.77,6.214]
[1726250165287,6.19809541,136.82,136.78,15.84223009]
[1726250165519,6.19809541,136.82,136.78,14.38181823]
[1726250165744,6.19809541,136.81,136.77,20.59581823]
[1726250166037,6.19809541,136.8,136.77,6.214]
[1726250166218,23.776884,136.85,136.77,6.214]
[1726250166405,7.65604581,136.84,136.77,6.214]
[1726250166607,6.19867172,136.83,136.77,6.214]
[1726250166808,1.45737409,136.84,136.76,0.2560802]
[1726250167425,6.19827584,136.82,136.76,0.2560802]
[1726250167611,1.45737409,136.84,136.76,0.2560802]
[1726250167612,6.19827584,136.81,136.76,0.2560802]
[1726250167816,6.19827584,136.8,136.76,0.2560802]
[1726250168024,6.19827584,136.79,136.76,0.2560802]
[1726250168198,1.45737409,136.84,136.76,0.2560802]
[1726250168706,6.19838431,136.83,136.76,0.2560802]
[1726250169226,6.19838431,136.82,136.76,0.2560802]
[1726250169434,6.19838431,136.81,136.76,0.2560802]
[1726250169728,6.19838431,136.8,136.76,0.2560802]
[1726250169903,6.19838431,136.79,136.76,14.63789843]
[1726250170098,23.902374,136.86,136.77,14.38181823]
[1726250170325,23.902374,136.86,136.76,0.2560802]
[1726250170326,23.776884,136.84,136.76,0.2560802]
[1726250170619,6.19880868,136.83,136.76,14.63789843]
[1726250170796,6.19880868,136.82,136.76,14.63789843]
[1726250170999,6.19880868,136.81,136.76,14.63789843]
[1726250171228,6.19880868,136.8,136.76,14.63789843]
[1726250171405,6.19880868,136.79,136.76,14.63789843]
[1726250171601,1.45737409,136.83,136.76,14.63789843]
[1726250171802,6.19831927,136.82,136.76,14.63789843]
[1726250172315,6.19831927,136.81,136.76,14.63789843]
[1726250172512,6.19831927,136.8,136.76,14.63789843]
[1726250172825,6.19831927,136.79,136.76,0.2560802]
[1726250173124,6.19831927,136.78,136.76,0.2560802]
[1726250173435,1.45737409,136.83,136.76,0.2560802]
[1726250173635,6.19911412,136.82,136.77,14.38181823]
[1726250173807,6.19911412,136.81,136.77,14.38181823]
[1726250174131,6.19911412,136.8,136.76,0.2560802]
[1726250174337,7.3074,136.85,136.76,0.2560802]
[1726250174338,6.19911412,136.79,136.76,0.2560802]
[1726250174634,6.19847633,136.78,136.76,0.2560802]
[1726250174802,24.027864,136.84,136.76,0.2560802]
[1726250175008,6.3240319,136.83,136.76,0.2560802]
[1726250175202,6.1985419,136.82,136.76,0.2560802]
[1726250175424,1.45737409,136.84,136.76,24.0329642]
[1726250175640,24.027864,136.86,136.76,24.0329642]
[1726250175816,6.19896797,136.81,136.76,38.41478243]
[1726250176440,6.19896797,136.8,136.76,38.41478243]
[1726250176731,6.19896797,136.79,136.77,14.63279823]
[1726250176937,0.12549,136.85,136.78,14.38181823]
[1726250177141,6.20043453,136.84,136.79,1.46169946]
[1726250177344,0.12549,136.85,136.77,14.63279823]
[1726250177345,6.20043453,136.83,136.77,14.63279823]
[1726250177637,6.20043453,136.83,136.76,38.41478243]
[1726250177811,1.58286409,136.85,136.77,14.38181823]
[1726250177812,6.20043453,136.82,136.77,14.38181823]
[1726250178012,6.20043453,136.81,136.76,38.41478243]
[1726250178238,6.20043453,136.8,136.76,24.0329642]
[1726250178414,6.20043453,136.79,136.76,24.0329642]
[1726250178617,0.12549,136.85,136.76,24.0329642]
[1726250179311,6.19959656,136.84,136.76,24.0329642]
[1726250179508,6.19959656,136.84,136.76,38.41478243]